[Event "*** Titled Tuesday Blitz"]
[Site "Chess.com"]
[Date "2019.03.05"]
[Round "6"]
[White "King_of_the_wing"]
[Black "almaguerjm"]
[Result "0-1"]
[WhiteElo "2140"]
[BlackElo "2308"]
[TimeControl "180+2"]
[EndTime "14:26:34 PST"]
[Termination "almaguerjm won by resignation"]

1. e4 {[%clk 0:02:56.8]} 1... c5 {[%clk 0:02:59.4]} 2. Nf3 {[%clk 0:02:55.6]}
2... Nc6 {[%clk 0:03:00.9]} 3. d4 {[%clk 0:02:55.8]} 3... cxd4 {[%clk
0:03:02.8]} 4. Nxd4 {[%clk 0:02:57.7]} 4... g6 {[%clk 0:03:04.4]} 5. g3 {[%clk
0:02:57.2]} 5... Bg7 {[%clk 0:03:05.9]} 6. Be3 {[%clk 0:02:56.9]} 6... Nf6
{[%clk 0:03:07.5]} 7. Bg2 {[%clk 0:02:57.5]} 7... O-O {[%clk 0:03:08.6]} 8. c4
{[%clk 0:02:54.6]} 8... Ng4 {[%clk 0:02:52.8]} 9. Nxc6 {[%clk 0:02:38.2]} 9...
dxc6 {[%clk 0:02:53.5]} 10. Qxd8 {[%clk 0:01:51.4]} 10... Rxd8 {[%clk
0:02:55.4]} 11. Bc1 {[%clk 0:01:45]} 11... Be6 {[%clk 0:02:43.3]} 12. Na3 {[%clk
0:01:37.4]} 12... Ne5 {[%clk 0:02:19.9]} 13. O-O {[%clk 0:01:24.7]} 13... Nxc4
{[%clk 0:02:13.6]} 14. Nxc4 {[%clk 0:01:26]} 14... Bxc4 {[%clk 0:02:15.1]} 15.
Re1 {[%clk 0:01:22.4]} 15... Rd7 {[%clk 0:02:12]} 16. Be3 {[%clk 0:00:55.3]}
16... Bxb2 {[%clk 0:02:09.1]} 17. Rab1 {[%clk 0:00:56.5]} 17... Bg7 {[%clk
0:01:59.9]} 18. Red1 {[%clk 0:00:31.8]} 18... Rad8 {[%clk 0:01:52.3]} 19. Rxd7
{[%clk 0:00:30.9]} 19... Rxd7 {[%clk 0:01:54.2]} 20. Bxa7 {[%clk 0:00:31.9]}
20... Bxa2 {[%clk 0:01:54.7]} 21. Re1 {[%clk 0:00:21.6]} 21... Bc3 {[%clk
0:01:48.9]} 22. Rc1 {[%clk 0:00:19.5]} 22... Bd4 {[%clk 0:01:15.5]} 23. Bxd4
{[%clk 0:00:05.8]} 23... Rxd4 {[%clk 0:01:17.4]} 24. Ra1 {[%clk 0:00:05.6]}
24... Rd2 {[%clk 0:01:17.5]} 25. Kf1 {[%clk 0:00:04.8]} 25... Bc4+ {[%clk
0:01:12]} 26. Kg1 {[%clk 0:00:06.4]} 26... Ba6 {[%clk 0:01:11.5]} 27. e5 {[%clk
0:00:06.7]} 27... Rc2 {[%clk 0:01:08]} 28. Be4 {[%clk 0:00:05.2]} 28... Rc3
{[%clk 0:01:06.6]} 29. f3 {[%clk 0:00:05.6]} 29... Kg7 {[%clk 0:01:07.6]} 30.
Kf2 {[%clk 0:00:06.1]} 30... f6 {[%clk 0:01:08.1]} 31. exf6+ {[%clk 0:00:07]}
31... Kxf6 {[%clk 0:01:10]} 32. Rd1 {[%clk 0:00:07.6]} 32... b5 {[%clk
0:01:03.5]} 33. Ra1 {[%clk 0:00:08.7]} 33... Bc8 {[%clk 0:01:04]} 34. Ra8 {[%clk
0:00:09.5]} 34... Bf5 {[%clk 0:01:04.8]} 35. Rf8+ {[%clk 0:00:07.9]} 35... Ke5
{[%clk 0:01:06.2]} 36. Bxf5 {[%clk 0:00:05.4]} 36... gxf5 {[%clk 0:01:08.1]} 37.
f4+ {[%clk 0:00:06]} 37... Ke4 {[%clk 0:01:05.9]} 38. Rf7 {[%clk 0:00:07.3]}
38... Rc2+ {[%clk 0:01:07]} 39. Ke1 {[%clk 0:00:08.8]} 39... e5 {[%clk
0:01:06.5]} 40. Re7 {[%clk 0:00:08.6]} 40... Rxh2 {[%clk 0:01:05.4]} 41. fxe5
{[%clk 0:00:08.2]} 41... b4 {[%clk 0:01:00.7]} 42. e6 {[%clk 0:00:08.8]} 42...
b3 {[%clk 0:01:01.6]} 43. Rb7 {[%clk 0:00:09.9]} 43... Rh6 {[%clk 0:00:55.9]}
44. e7 {[%clk 0:00:08]} 44... Re6 {[%clk 0:00:56.8]} 45. Rxb3 {[%clk 0:00:05.6]}
45... Rxe7 {[%clk 0:00:54.3]} 46. Kf2 {[%clk 0:00:07.1]} 46... Rd7 {[%clk
0:00:50]} 47. Re3+ {[%clk 0:00:08.4]} 47... Kd5 {[%clk 0:00:51.4]} 48. Re8
{[%clk 0:00:07.4]} 48... Rf7 {[%clk 0:00:42.6]} 49. Kf3 {[%clk 0:00:06.1]} 49...
Kc4 {[%clk 0:00:43.7]} 50. Kf4 {[%clk 0:00:05]} 50... c5 {[%clk 0:00:45]} 51.
Rc8 {[%clk 0:00:04.3]} 51... Kd4 {[%clk 0:00:45.9]} 52. Rd8+ {[%clk 0:00:04.6]}
52... Kc3 {[%clk 0:00:46.8]} 53. Rd5 {[%clk 0:00:06.2]} 53... c4 {[%clk
0:00:47.9]} 0-1

[Event "*** Titled Tuesday Blitz"]
[Site "Chess.com"]
[Date "2019.03.05"]
[Round "6"]
[White "PowerThinking2650"]
[Black "Tiqr777"]
[Result "1/2-1/2"]
[WhiteElo "2330"]
[BlackElo "2482"]
[TimeControl "180+2"]
[EndTime "14:27:00 PST"]
[Termination "Game drawn - insufficient material"]

1. e4 {[%clk 0:03:01.9]} 1... e5 {[%clk 0:03:01.1]} 2. Nf3 {[%clk 0:03:02.8]}
2... Nc6 {[%clk 0:03:02.2]} 3. Nc3 {[%clk 0:03:04.3]} 3... Nf6 {[%clk
0:03:02.2]} 4. d4 {[%clk 0:03:05.7]} 4... exd4 {[%clk 0:03:02.6]} 5. Nxd4 {[%clk
0:03:07.2]} 5... Bb4 {[%clk 0:03:04.2]} 6. Nxc6 {[%clk 0:03:08.1]} 6... bxc6
{[%clk 0:03:04]} 7. Bd3 {[%clk 0:03:09.6]} 7... d5 {[%clk 0:03:05.4]} 8. exd5
{[%clk 0:03:11.5]} 8... cxd5 {[%clk 0:03:06.1]} 9. O-O {[%clk 0:03:12.5]} 9...
O-O {[%clk 0:03:07.6]} 10. Bg5 {[%clk 0:03:13.8]} 10... c6 {[%clk 0:03:08.1]}
11. Qf3 {[%clk 0:03:13.9]} 11... h6 {[%clk 0:03:08.7]} 12. Bxf6 {[%clk
0:03:14.8]} 12... Qxf6 {[%clk 0:03:10.2]} 13. Qxf6 {[%clk 0:03:16.3]} 13... gxf6
{[%clk 0:03:11.8]} 14. Ne2 {[%clk 0:03:17.7]} 14... Bd6 {[%clk 0:03:06]} 15. Ng3
{[%clk 0:03:17.3]} 15... Be6 {[%clk 0:02:54.3]} 16. c3 {[%clk 0:03:15.2]} 16...
Rab8 {[%clk 0:02:46.7]} 17. b4 {[%clk 0:02:59.8]} 17... c5 {[%clk 0:02:43.6]}
18. a3 {[%clk 0:02:53.8]} 18... c4 {[%clk 0:02:40.4]} 19. Be2 {[%clk 0:02:46]}
19... a5 {[%clk 0:02:36.2]} 20. f4 {[%clk 0:02:37.5]} 20... axb4 {[%clk
0:02:36.7]} 21. axb4 {[%clk 0:02:37.8]} 21... d4 {[%clk 0:02:36.9]} 22. cxd4
{[%clk 0:02:23.7]} 22... Bxb4 {[%clk 0:02:35.2]} 23. Nh5 {[%clk 0:02:24.1]}
23... Bc3 {[%clk 0:02:27.7]} 24. Nxf6+ {[%clk 0:02:21.8]} 24... Kg7 {[%clk
0:02:10.5]} 25. Nh5+ {[%clk 0:02:20.4]} 25... Kh8 {[%clk 0:02:11.9]} 26. Rad1
{[%clk 0:02:00.4]} 26... Rfd8 {[%clk 0:02:12.3]} 27. f5 {[%clk 0:02:00.9]} 27...
Bd5 {[%clk 0:01:51.5]} 28. Kh1 {[%clk 0:02:00.9]} 28... Rb2 {[%clk 0:01:47.5]}
29. Nf4 {[%clk 0:01:51.6]} 29... Be4 {[%clk 0:01:37.1]} 30. Bxc4 {[%clk
0:01:46.2]} 30... Rxd4 {[%clk 0:01:38.5]} 31. Rxd4 {[%clk 0:01:38.7]} 31... Bxd4
{[%clk 0:01:40]} 32. Bxf7 {[%clk 0:01:37.8]} 32... Bxf5 {[%clk 0:01:41.3]} 33.
Bg6 {[%clk 0:01:27.4]} 33... Bc8 {[%clk 0:01:23.7]} 34. Be4 {[%clk 0:01:22.6]}
34... Rf2 {[%clk 0:01:18.2]} 35. Rxf2 {[%clk 0:01:21.5]} 35... Bxf2 {[%clk
0:01:19.7]} 36. g3 {[%clk 0:01:22.9]} 36... Bc5 {[%clk 0:01:11.4]} 37. Kg2
{[%clk 0:01:22.9]} 37... Kg7 {[%clk 0:01:12.1]} 38. Kf3 {[%clk 0:01:23.4]} 38...
Kf6 {[%clk 0:01:13]} 39. h4 {[%clk 0:01:23.8]} 39... Bd6 {[%clk 0:01:11.4]} 40.
Nh5+ {[%clk 0:01:21.4]} 40... Ke5 {[%clk 0:01:11.4]} 41. Nf4 {[%clk 0:01:15.9]}
41... Kf6 {[%clk 0:01:09.9]} 42. Ng2 {[%clk 0:00:40.8]} 42... Bd7 {[%clk
0:01:02.2]} 43. Ne3 {[%clk 0:00:35.6]} 43... Be6 {[%clk 0:01:00.2]} 44. Bd5
{[%clk 0:00:30.7]} 44... Bd7 {[%clk 0:00:58.3]} 45. Nf1 {[%clk 0:00:26]} 45...
Ba4 {[%clk 0:00:54.9]} 46. Nd2 {[%clk 0:00:26.4]} 46... Bd1+ {[%clk 0:00:55.6]}
47. Kf2 {[%clk 0:00:27]} 47... Bc5+ {[%clk 0:00:55.1]} 48. Kg2 {[%clk
0:00:27.7]} 48... Ke5 {[%clk 0:00:52.8]} 49. Bf3 {[%clk 0:00:28.3]} 49... Bc2
{[%clk 0:00:51.5]} 50. Nc4+ {[%clk 0:00:25.2]} 50... Kf6 {[%clk 0:00:52.4]} 51.
Nd2 {[%clk 0:00:25.1]} 51... Be3 {[%clk 0:00:52.1]} 52. Ne4+ {[%clk 0:00:25.3]}
52... Bxe4 {[%clk 0:00:52.5]} 53. Bxe4 {[%clk 0:00:26.2]} 53... Bc1 {[%clk
0:00:53.2]} 54. Kf3 {[%clk 0:00:27]} 54... Bd2 {[%clk 0:00:54.3]} 55. g4 {[%clk
0:00:28]} 55... Be1 {[%clk 0:00:53.1]} 56. g5+ {[%clk 0:00:28.5]} 56... hxg5
{[%clk 0:00:54.7]} 57. hxg5+ {[%clk 0:00:29.9]} 57... Kxg5 {[%clk 0:00:56.1]}
58. Ke2 {[%clk 0:00:30.9]} 58... Kf4 {[%clk 0:00:57.4]} 59. Kxe1 {[%clk
0:00:31.1]} 1/2-1/2

[Event "*** Titled Tuesday Blitz"]
[Site "Chess.com"]
[Date "2019.03.05"]
[Round "6"]
[White "gmjlh"]
[Black "Al_Shima"]
[Result "1-0"]
[WhiteElo "2710"]
[BlackElo "2446"]
[TimeControl "180+2"]
[EndTime "14:27:01 PST"]
[Termination "gmjlh won by checkmate"]

1. e4 {[%clk 0:03:01.9]} 1... d5 {[%clk 0:03:00.8]} 2. exd5 {[%clk 0:03:02.5]}
2... Nf6 {[%clk 0:03:02]} 3. Bb5+ {[%clk 0:02:58.4]} 3... Bd7 {[%clk 0:03:02.9]}
4. Bxd7+ {[%clk 0:02:57.2]} 4... Qxd7 {[%clk 0:03:03.4]} 5. Nf3 {[%clk
0:02:57.4]} 5... Nxd5 {[%clk 0:03:02.8]} 6. O-O {[%clk 0:02:58.5]} 6... e6
{[%clk 0:02:57.5]} 7. Ne5 {[%clk 0:02:56.5]} 7... Qc8 {[%clk 0:02:53.2]} 8. d4
{[%clk 0:02:57.1]} 8... Be7 {[%clk 0:02:50.3]} 9. c4 {[%clk 0:02:57.2]} 9... Nf6
{[%clk 0:02:50.9]} 10. Nc3 {[%clk 0:02:57.9]} 10... O-O {[%clk 0:02:51.5]} 11.
Be3 {[%clk 0:02:58.8]} 11... Rd8 {[%clk 0:02:51.5]} 12. Qf3 {[%clk 0:02:56.5]}
12... Nbd7 {[%clk 0:02:51.2]} 13. Rfd1 {[%clk 0:02:34.7]} 13... Nxe5 {[%clk
0:02:44.3]} 14. dxe5 {[%clk 0:02:35.8]} 14... Nd7 {[%clk 0:02:40.3]} 15. Qg3
{[%clk 0:02:35.8]} 15... Nf8 {[%clk 0:02:32]} 16. h4 {[%clk 0:02:29.1]} 16...
Rxd1+ {[%clk 0:02:19.3]} 17. Rxd1 {[%clk 0:02:29.4]} 17... Qe8 {[%clk
0:02:19.9]} 18. h5 {[%clk 0:02:29.3]} 18... Rd8 {[%clk 0:02:15.7]} 19. Qf3
{[%clk 0:02:27.1]} 19... Rxd1+ {[%clk 0:02:14.6]} 20. Qxd1 {[%clk 0:02:29]}
20... Qc6 {[%clk 0:02:12.3]} 21. b3 {[%clk 0:02:21.9]} 21... a6 {[%clk
0:02:11.1]} 22. Qg4 {[%clk 0:02:10.6]} 22... Nd7 {[%clk 0:02:09.6]} 23. f4
{[%clk 0:02:02.8]} 23... h6 {[%clk 0:02:01.5]} 24. Kf2 {[%clk 0:01:59.8]} 24...
Bc5 {[%clk 0:01:55.3]} 25. Qf3 {[%clk 0:01:58.9]} 25... Qxf3+ {[%clk 0:01:51.6]}
26. Kxf3 {[%clk 0:01:59.9]} 26... Bxe3 {[%clk 0:01:52.3]} 27. Kxe3 {[%clk
0:02:01.8]} 27... Kf8 {[%clk 0:01:51.8]} 28. Ne4 {[%clk 0:01:58.9]} 28... Ke7
{[%clk 0:01:51]} 29. g4 {[%clk 0:01:59.6]} 29... f6 {[%clk 0:01:49.9]} 30. Kd4
{[%clk 0:01:58.4]} 30... b6 {[%clk 0:01:48.3]} 31. b4 {[%clk 0:01:57.9]} 31...
Nb8 {[%clk 0:01:45.3]} 32. exf6+ {[%clk 0:01:36.2]} 32... gxf6 {[%clk
0:01:45.7]} 33. g5 {[%clk 0:00:48]} 33... e5+ {[%clk 0:01:11.1]} 34. Kd3 {[%clk
0:00:34.9]} 34... fxg5 {[%clk 0:00:50.6]} 35. fxg5 {[%clk 0:00:35]} 35... hxg5
{[%clk 0:00:51.4]} 36. h6 {[%clk 0:00:13.9]} 36... Kf7 {[%clk 0:00:47.4]} 37.
Nxg5+ {[%clk 0:00:15.2]} 37... Kg6 {[%clk 0:00:44.6]} 38. h7 {[%clk 0:00:16.7]}
38... Kg7 {[%clk 0:00:44.7]} 39. Ke4 {[%clk 0:00:16.7]} 39... Nc6 {[%clk
0:00:43.8]} 40. a3 {[%clk 0:00:17.8]} 40... Nd4 {[%clk 0:00:39.7]} 41. Kxe5
{[%clk 0:00:10.2]} 41... Nc2 {[%clk 0:00:39.5]} 42. Ne6+ {[%clk 0:00:08.1]}
42... Kxh7 {[%clk 0:00:40]} 43. Nxc7 {[%clk 0:00:09.5]} 43... Nxa3 {[%clk
0:00:40.8]} 44. Kd4 {[%clk 0:00:06.1]} 44... a5 {[%clk 0:00:36.6]} 45. b5 {[%clk
0:00:07.4]} 45... Nc2+ {[%clk 0:00:23.2]} 46. Kc3 {[%clk 0:00:05.3]} 46... Ne3
{[%clk 0:00:16.9]} 47. Na8 {[%clk 0:00:05.7]} 47... a4 {[%clk 0:00:17]} 48. Nxb6
{[%clk 0:00:06.1]} 48... a3 {[%clk 0:00:18.2]} 49. Kb3 {[%clk 0:00:07.6]} 49...
Kg6 {[%clk 0:00:16.8]} 50. Kxa3 {[%clk 0:00:08.8]} 50... Kf6 {[%clk 0:00:17.6]}
51. Nd5+ {[%clk 0:00:09.7]} 51... Nxd5 {[%clk 0:00:18.6]} 52. cxd5 {[%clk
0:00:11.6]} 52... Ke5 {[%clk 0:00:20]} 53. b6 {[%clk 0:00:13.2]} 53... Kd6
{[%clk 0:00:20.8]} 54. Kb4 {[%clk 0:00:14.8]} 54... Kd7 {[%clk 0:00:22.2]} 55.
Kc5 {[%clk 0:00:16.3]} 55... Kc8 {[%clk 0:00:24.1]} 56. d6 {[%clk 0:00:17.7]}
56... Kb7 {[%clk 0:00:25.7]} 57. d7 {[%clk 0:00:19.1]} 57... Ka6 {[%clk
0:00:26.2]} 58. d8=Q {[%clk 0:00:20.1]} 58... Kb7 {[%clk 0:00:27.3]} 59. Qc7+
{[%clk 0:00:21.5]} 59... Ka6 {[%clk 0:00:28.6]} 60. Qa7# {[%clk 0:00:23.4]} 1-0

[Event "*** Titled Tuesday Blitz"]
[Site "Chess.com"]
[Date "2019.03.05"]
[Round "6"]
[White "mlchen"]
[Black "marianokar"]
[Result "0-1"]
[WhiteElo "2420"]
[BlackElo "2440"]
[TimeControl "180+2"]
[EndTime "14:27:01 PST"]
[Termination "marianokar won by resignation"]

1. e4 {[%clk 0:03:01.9]} 1... c5 {[%clk 0:02:57.9]} 2. c3 {[%clk 0:03:02.9]}
2... g6 {[%clk 0:02:55.5]} 3. d4 {[%clk 0:03:04]} 3... cxd4 {[%clk 0:02:56.9]}
4. cxd4 {[%clk 0:03:05.9]} 4... d5 {[%clk 0:02:58]} 5. e5 {[%clk 0:03:06.4]}
5... Nh6 {[%clk 0:02:56]} 6. Nf3 {[%clk 0:03:03.7]} 6... Nc6 {[%clk 0:02:57.3]}
7. Bb5 {[%clk 0:03:02.7]} 7... Bg4 {[%clk 0:02:58.4]} 8. Bxc6+ {[%clk 0:02:39]}
8... bxc6 {[%clk 0:02:58.6]} 9. O-O {[%clk 0:02:40.2]} 9... Nf5 {[%clk
0:02:58.1]} 10. Be3 {[%clk 0:02:40.9]} 10... Nxe3 {[%clk 0:02:46.4]} 11. fxe3
{[%clk 0:02:42.8]} 11... Bh6 {[%clk 0:02:47.1]} 12. Qd3 {[%clk 0:02:36.1]} 12...
O-O {[%clk 0:02:45.8]} 13. Nbd2 {[%clk 0:02:36.4]} 13... Qb6 {[%clk 0:02:29.4]}
14. Nb3 {[%clk 0:02:33.8]} 14... a5 {[%clk 0:02:29.9]} 15. Rf2 {[%clk
0:02:26.8]} 15... Rab8 {[%clk 0:02:20.9]} 16. Nc5 {[%clk 0:02:26.2]} 16... Bf5
{[%clk 0:02:16.3]} 17. Qe2 {[%clk 0:02:19.2]} 17... f6 {[%clk 0:02:15.9]} 18. e6
{[%clk 0:01:55.3]} 18... Rbd8 {[%clk 0:01:52.5]} 19. Nh4 {[%clk 0:01:05.4]}
19... Be4 {[%clk 0:01:52.9]} 20. Re1 {[%clk 0:01:05]} 20... f5 {[%clk
0:01:33.1]} 21. Nf3 {[%clk 0:01:01.4]} 21... Qc7 {[%clk 0:01:29.9]} 22. Ne5
{[%clk 0:00:59]} 22... Rd6 {[%clk 0:01:25.8]} 23. Nf7 {[%clk 0:00:56.5]} 23...
Rxf7 {[%clk 0:01:26.1]} 24. exf7+ {[%clk 0:00:57.8]} 24... Kxf7 {[%clk 0:01:28]}
25. Nxe4 {[%clk 0:00:58.8]} 25... dxe4 {[%clk 0:01:28.8]} 26. Qc4+ {[%clk
0:00:55.8]} 26... Kg7 {[%clk 0:01:24.7]} 27. Rc2 {[%clk 0:00:53.4]} 27... Qb7
{[%clk 0:01:07]} 28. Qc5 {[%clk 0:00:49]} 28... a4 {[%clk 0:01:00.9]} 29. Qc4
{[%clk 0:00:40.8]} 29... Qa7 {[%clk 0:00:55]} 30. Qc5 {[%clk 0:00:23.4]} 30...
Qa6 {[%clk 0:00:46.2]} 31. Rc4 {[%clk 0:00:20.4]} 31... Bg5 {[%clk 0:00:35.9]}
32. Rb4 {[%clk 0:00:20.8]} 32... a3 {[%clk 0:00:20.2]} 33. Rb6 {[%clk
0:00:16.5]} 33... Qd3 {[%clk 0:00:18.6]} 34. Qxa3 {[%clk 0:00:17.5]} 34... Qd2
{[%clk 0:00:18.7]} 35. Qc3 {[%clk 0:00:18.5]} 35... Qxc3 {[%clk 0:00:18.6]} 36.
bxc3 {[%clk 0:00:19.8]} 36... Rd5 {[%clk 0:00:19.4]} 37. Kf2 {[%clk 0:00:18.2]}
37... Ra5 {[%clk 0:00:21.3]} 38. Ra1 {[%clk 0:00:19.7]} 38... Ra3 {[%clk
0:00:21.8]} 39. Rb3 {[%clk 0:00:20.4]} 39... Ra4 {[%clk 0:00:22.9]} 40. a3
{[%clk 0:00:20.7]} 40... Kf6 {[%clk 0:00:23.2]} 41. Rb4 {[%clk 0:00:21.8]} 41...
Ra5 {[%clk 0:00:24.4]} 42. a4 {[%clk 0:00:22.7]} 42... Ke6 {[%clk 0:00:25.4]}
43. c4 {[%clk 0:00:22.8]} 43... Kd6 {[%clk 0:00:25.8]} 44. Ke2 {[%clk
0:00:22.1]} 44... e5 {[%clk 0:00:26.8]} 45. Rb7 {[%clk 0:00:16.9]} 45... exd4
{[%clk 0:00:25.9]} 46. exd4 {[%clk 0:00:18.3]} 46... Bf6 {[%clk 0:00:26.5]} 47.
Rxh7 {[%clk 0:00:18.6]} 47... Bxd4 {[%clk 0:00:27]} 48. Rh6 {[%clk 0:00:20.2]}
48... Bxa1 {[%clk 0:00:26.9]} 49. Rxg6+ {[%clk 0:00:21.3]} 49... Kc5 {[%clk
0:00:28.1]} 50. h4 {[%clk 0:00:21]} 50... Rxa4 {[%clk 0:00:26.9]} 51. h5 {[%clk
0:00:22]} 51... Bd4 {[%clk 0:00:25.6]} 52. h6 {[%clk 0:00:22.3]} 52... Ra2+
{[%clk 0:00:27.1]} 53. Ke1 {[%clk 0:00:22.7]} 53... Kxc4 {[%clk 0:00:28.2]} 54.
Rxc6+ {[%clk 0:00:23.4]} 54... Kd3 {[%clk 0:00:29.5]} 55. Rc1 {[%clk 0:00:22.1]}
55... Rxg2 {[%clk 0:00:29.8]} 56. Rd1+ {[%clk 0:00:22.3]} 56... Ke3 {[%clk
0:00:31]} 57. Kf1 {[%clk 0:00:22.8]} 57... Rh2 {[%clk 0:00:32.1]} 58. Re1+
{[%clk 0:00:22.6]} 58... Kf3 {[%clk 0:00:31.8]} 0-1

[Event "*** Titled Tuesday Blitz"]
[Site "Chess.com"]
[Date "2019.03.05"]
[Round "6"]
[White "LukasHandler"]
[Black "BIG_Pirate"]
[Result "0-1"]
[WhiteElo "2352"]
[BlackElo "2378"]
[TimeControl "180+2"]
[EndTime "14:27:01 PST"]
[Termination "BIG_Pirate won by resignation"]

1. d4 {[%clk 0:03:01.9]} 1... d5 {[%clk 0:03:01]} 2. c4 {[%clk 0:03:02.4]} 2...
c6 {[%clk 0:03:02.3]} 3. Nf3 {[%clk 0:03:02.2]} 3... Nf6 {[%clk 0:03:03.4]} 4.
e3 {[%clk 0:03:03]} 4... e6 {[%clk 0:03:04.6]} 5. Nc3 {[%clk 0:03:02]} 5... Nbd7
{[%clk 0:03:04]} 6. Qc2 {[%clk 0:03:03.2]} 6... Bd6 {[%clk 0:03:04.3]} 7. g4
{[%clk 0:03:02.2]} 7... Nxg4 {[%clk 0:03:04.4]} 8. Rg1 {[%clk 0:03:03.1]} 8...
Nxh2 {[%clk 0:03:05.5]} 9. Nxh2 {[%clk 0:03:02.4]} 9... Bxh2 {[%clk 0:03:07.4]}
10. Rxg7 {[%clk 0:03:03.2]} 10... Nf8 {[%clk 0:03:08.3]} 11. Rg2 {[%clk
0:03:01.7]} 11... Bd6 {[%clk 0:03:08.3]} 12. Bd2 {[%clk 0:03:02.6]} 12... dxc4
{[%clk 0:02:50.7]} 13. Bxc4 {[%clk 0:03:02.5]} 13... e5 {[%clk 0:02:52.1]} 14.
dxe5 {[%clk 0:02:58.2]} 14... Bxe5 {[%clk 0:02:52.8]} 15. O-O-O {[%clk
0:02:59.1]} 15... Be6 {[%clk 0:02:48.5]} 16. Be2 {[%clk 0:02:46.1]} 16... Qc7
{[%clk 0:02:40.5]} 17. f4 {[%clk 0:02:42.1]} 17... Bd6 {[%clk 0:02:38.3]} 18. f5
{[%clk 0:02:34.3]} 18... Bd7 {[%clk 0:02:39]} 19. Ne4 {[%clk 0:02:32.1]} 19...
Be5 {[%clk 0:02:34.7]} 20. Bc3 {[%clk 0:02:26.8]} 20... O-O-O {[%clk 0:02:12.9]}
21. Nd6+ {[%clk 0:02:24.8]} 21... Bxd6 {[%clk 0:01:51.5]} 22. Bxh8 {[%clk
0:02:25.7]} 22... Be5 {[%clk 0:01:45.7]} 23. Bxe5 {[%clk 0:02:25.1]} 23... Qxe5
{[%clk 0:01:47.6]} 24. e4 {[%clk 0:02:23.9]} 24... h6 {[%clk 0:01:39.3]} 25. Bc4
{[%clk 0:02:19.1]} 25... Nh7 {[%clk 0:01:35.5]} 26. Rgd2 {[%clk 0:01:44.1]}
26... Ng5 {[%clk 0:01:33.6]} 27. Rd4 {[%clk 0:01:44.6]} 27... Nf3 {[%clk
0:01:20.7]} 28. Rd6 {[%clk 0:01:29.1]} 28... Ng5 {[%clk 0:01:20]} 29. R6d4
{[%clk 0:00:57.3]} 29... Nf3 {[%clk 0:01:20.7]} 30. R4d3 {[%clk 0:00:51.4]}
30... Qxe4 {[%clk 0:01:04.3]} 31. Bxf7 {[%clk 0:00:47.2]} 31... Qxf5 {[%clk
0:01:03.4]} 32. Bb3 {[%clk 0:00:33.6]} 32... Ne5 {[%clk 0:00:48.6]} 33. R3d2
{[%clk 0:00:34.5]} 33... Qxc2+ {[%clk 0:00:46.8]} 34. Bxc2 {[%clk 0:00:35.5]}
34... Rf8 {[%clk 0:00:45.4]} 35. Rd6 {[%clk 0:00:34.9]} 35... h5 {[%clk
0:00:40.3]} 36. Re1 {[%clk 0:00:31.6]} 36... Nc4 {[%clk 0:00:27]} 37. Rh6 {[%clk
0:00:31.8]} 37... Bg4 {[%clk 0:00:27.7]} 38. b3 {[%clk 0:00:29.2]} 38... Na3
{[%clk 0:00:24]} 39. Bg6 {[%clk 0:00:29.3]} 39... Kc7 {[%clk 0:00:13]} 40. Bxh5
{[%clk 0:00:20.5]} 40... Bxh5 {[%clk 0:00:13.9]} 41. Rxh5 {[%clk 0:00:21.3]}
41... Rf7 {[%clk 0:00:09.5]} 42. Rh2 {[%clk 0:00:21.5]} 42... Nb5 {[%clk
0:00:09.9]} 43. Kb2 {[%clk 0:00:22.7]} 43... a5 {[%clk 0:00:10.7]} 44. Rd2
{[%clk 0:00:23.8]} 44... Kb6 {[%clk 0:00:11.5]} 45. Rde2 {[%clk 0:00:24.9]}
45... Rd7 {[%clk 0:00:11.6]} 46. Re4 {[%clk 0:00:25.9]} 46... Rf7 {[%clk
0:00:12]} 47. R4e2 {[%clk 0:00:26.7]} 47... Rd7 {[%clk 0:00:13.1]} 48. Rc1
{[%clk 0:00:27]} 48... Rf7 {[%clk 0:00:13]} 49. Rd2 {[%clk 0:00:28.2]} 49... Rg7
{[%clk 0:00:13.6]} 50. a4 {[%clk 0:00:29.3]} 50... Nc7 {[%clk 0:00:13.3]} 51.
Rcd1 {[%clk 0:00:30.4]} 51... Na6 {[%clk 0:00:14.3]} 52. Ka3 {[%clk 0:00:31.1]}
52... Nb4 {[%clk 0:00:15]} 53. Re2 {[%clk 0:00:30.8]} 53... Rf7 {[%clk 0:00:16]}
54. Re3 {[%clk 0:00:30.6]} 54... Rf2 {[%clk 0:00:16.7]} 0-1